[Event "Early-Titled-Tuesday-Blitz-May-28-2024"]
[Site "Chess.com"]
[Date "2024.05.28"]
[Round "4"]
[White "pirulillo"]
[Black "IndianSchoolOfSuffering"]
[Result "1-0"]
[WhiteElo "2366"]
[BlackElo "2521"]
[TimeControl "180+1"]
[EndTime "8:39:39 PDT"]
[Termination "pirulillo won by resignation"]

1. e4 {[%clk 0:03:00.9]} 1... c5 {[%clk 0:02:58.8]} 2. Nf3 {[%clk 0:03:00.2]}
2... d6 {[%clk 0:02:58.8]} 3. d4 {[%clk 0:02:59.8]} 3... cxd4 {[%clk 0:02:59.7]}
4. Nxd4 {[%clk 0:02:59.8]} 4... Nf6 {[%clk 0:03:00.2]} 5. Nc3 {[%clk 0:03:00.3]}
5... a6 {[%clk 0:03:00.7]} 6. Be2 {[%clk 0:03:00.5]} 6... e5 {[%clk 0:02:59.8]}
7. Nb3 {[%clk 0:03:01]} 7... Be7 {[%clk 0:03:00]} 8. Be3 {[%clk 0:03:01.4]} 8...
Be6 {[%clk 0:02:59.5]} 9. Nd5 {[%clk 0:03:01.9]} 9... Bxd5 {[%clk 0:02:54.2]}
10. exd5 {[%clk 0:03:02.8]} 10... O-O {[%clk 0:02:53.4]} 11. c4 {[%clk
0:02:59.5]} 11... a5 {[%clk 0:02:53.2]} 12. O-O {[%clk 0:02:58.9]} 12... a4
{[%clk 0:02:53.2]} 13. Nd2 {[%clk 0:02:57.8]} 13... Nbd7 {[%clk 0:02:52.8]} 14.
b4 {[%clk 0:02:56.8]} 14... Re8 {[%clk 0:02:40]} 15. a3 {[%clk 0:02:52.3]} 15...
g6 {[%clk 0:02:30.2]} 16. Rc1 {[%clk 0:02:51.1]} 16... Bf8 {[%clk 0:02:29.4]}
17. Nb1 {[%clk 0:02:51.1]} 17... Bg7 {[%clk 0:02:07.5]} 18. Nc3 {[%clk
0:02:49.8]} 18... h5 {[%clk 0:02:03.2]} 19. h3 {[%clk 0:02:46.6]} 19... e4
{[%clk 0:02:01.6]} 20. Nxa4 {[%clk 0:02:42.6]} 20... Ne5 {[%clk 0:02:00.9]} 21.
Qb3 {[%clk 0:02:41.4]} 21... Nfd7 {[%clk 0:01:40.6]} 22. Rfd1 {[%clk 0:02:32.1]}
22... f5 {[%clk 0:01:36.2]} 23. c5 {[%clk 0:02:24.8]} 23... Nd3 {[%clk
0:01:05.7]} 24. Bxd3 {[%clk 0:02:19.2]} 24... exd3 {[%clk 0:01:04.9]} 25. Rxd3
{[%clk 0:02:16.2]} 25... Ne5 {[%clk 0:00:59.6]} 26. Rdd1 {[%clk 0:02:12.4]}
26... Qf6 {[%clk 0:00:55.4]} 27. Bd4 {[%clk 0:01:52.5]} 27... f4 {[%clk
0:00:52.8]} 28. f3 {[%clk 0:01:41.8]} 28... Qg5 {[%clk 0:00:48.7]} 29. Nb6
{[%clk 0:01:25.8]} 29... Rad8 {[%clk 0:00:33.4]} 30. c6 {[%clk 0:01:23.7]} 30...
Nxc6 {[%clk 0:00:19.9]} 31. dxc6+ {[%clk 0:01:20]} 31... Kh7 {[%clk 0:00:20.1]}
32. Bf2 {[%clk 0:00:38.7]} 32... bxc6 {[%clk 0:00:18.4]} 33. h4 {[%clk
0:00:34.8]} 33... Qb5 {[%clk 0:00:16.1]} 34. Nc4 {[%clk 0:00:33]} 34... Re2
{[%clk 0:00:14.9]} 35. a4 {[%clk 0:00:27.8]} 35... Qf5 {[%clk 0:00:12.7]} 36.
Nxd6 {[%clk 0:00:23.4]} 36... Qf6 {[%clk 0:00:11.8]} 37. Ne4 {[%clk 0:00:23.4]}
37... Rxd1+ {[%clk 0:00:08.8]} 38. Rxd1 {[%clk 0:00:24.3]} 38... Qe7 {[%clk
0:00:05.4]} 39. Ng5+ {[%clk 0:00:23.4]} 39... Kh6 {[%clk 0:00:04.6]} 40. Qg8
{[%clk 0:00:20.6]} 40... Bf6 {[%clk 0:00:04.2]} 41. Nf7+ {[%clk 0:00:19]} 1-0

[Event "Early-Titled-Tuesday-Blitz-May-28-2024"]
[Site "Chess.com"]
[Date "2024.05.28"]
[Round "4"]
[White "jaskol95"]
[Black "igorkovalenko"]
[Result "0-1"]
[WhiteElo "2528"]
[BlackElo "2901"]
[TimeControl "180+1"]
[EndTime "8:39:42 PDT"]
[Termination "igorkovalenko won by checkmate"]

1. d4 {[%clk 0:03:00.9]} 1... d5 {[%clk 0:03:00]} 2. Nc3 {[%clk 0:03:00.6]} 2...
e6 {[%clk 0:03:00.2]} 3. Bf4 {[%clk 0:02:59.2]} 3... a6 {[%clk 0:02:59.7]} 4. a3
{[%clk 0:02:57.7]} 4... c5 {[%clk 0:02:59.7]} 5. e3 {[%clk 0:02:58.3]} 5... Nc6
{[%clk 0:02:59.8]} 6. Nf3 {[%clk 0:02:58.8]} 6... b5 {[%clk 0:03:00.1]} 7. Be2
{[%clk 0:02:58]} 7... Bb7 {[%clk 0:03:00.6]} 8. O-O {[%clk 0:02:56.6]} 8... Rc8
{[%clk 0:03:00]} 9. Ne5 {[%clk 0:02:56]} 9... Nf6 {[%clk 0:02:59.3]} 10. Bf3
{[%clk 0:02:56.2]} 10... Nxe5 {[%clk 0:02:54.1]} 11. Bxe5 {[%clk 0:02:56]} 11...
Bd6 {[%clk 0:02:54.1]} 12. Bxd6 {[%clk 0:02:55.4]} 12... Qxd6 {[%clk 0:02:55]}
13. Ne2 {[%clk 0:02:55.2]} 13... O-O {[%clk 0:02:54.3]} 14. c3 {[%clk
0:02:55.6]} 14... e5 {[%clk 0:02:53.9]} 15. g3 {[%clk 0:02:51.2]} 15... cxd4
{[%clk 0:02:52.5]} 16. cxd4 {[%clk 0:02:49.7]} 16... e4 {[%clk 0:02:53.1]} 17.
Bg2 {[%clk 0:02:49.7]} 17... Bc6 {[%clk 0:02:48.7]} 18. Qd2 {[%clk 0:02:48]}
18... Bd7 {[%clk 0:02:49]} 19. Rac1 {[%clk 0:02:45.1]} 19... Rc4 {[%clk
0:02:43.1]} 20. Qa5 {[%clk 0:02:23.9]} 20... Bg4 {[%clk 0:02:37.7]} 21. Nc3
{[%clk 0:02:14.2]} 21... Bf3 {[%clk 0:02:33.9]} 22. Rc2 {[%clk 0:02:11.5]} 22...
g5 {[%clk 0:02:29.9]} 23. Rfc1 {[%clk 0:02:09.8]} 23... Kg7 {[%clk 0:02:29.4]}
24. b3 {[%clk 0:01:56.6]} 24... Rcc8 {[%clk 0:02:26.2]} 25. Qb4 {[%clk
0:01:52.4]} 25... Qe6 {[%clk 0:02:20.1]} 26. a4 {[%clk 0:01:48.6]} 26... bxa4
{[%clk 0:02:18.1]} 27. Nxa4 {[%clk 0:01:47.1]} 27... Rxc2 {[%clk 0:02:15.4]} 28.
Rxc2 {[%clk 0:01:47]} 28... Bxg2 {[%clk 0:02:15.8]} 29. Kxg2 {[%clk 0:01:46.5]}
29... h5 {[%clk 0:02:15.5]} 30. Rc7 {[%clk 0:00:49.2]} 30... h4 {[%clk
0:02:11.4]} 31. Qe7 {[%clk 0:00:49.6]} 31... h3+ {[%clk 0:02:11.6]} 32. Kf1
{[%clk 0:00:49.7]} 32... Qxe7 {[%clk 0:01:40.1]} 33. Rxe7 {[%clk 0:00:50.6]}
33... Rc8 {[%clk 0:01:38.7]} 34. Nc5 {[%clk 0:00:50.7]} 34... Ng4 {[%clk
0:01:36.4]} 35. Kg1 {[%clk 0:00:39.4]} 35... Rc6 {[%clk 0:01:35.9]} 36. Rd7
{[%clk 0:00:31.1]} 36... Rf6 {[%clk 0:01:20.7]} 37. Rxd5 {[%clk 0:00:30.7]}
37... Kh6 {[%clk 0:01:19.7]} 38. Nxe4 {[%clk 0:00:29.4]} 38... Rb6 {[%clk
0:01:19.9]} 39. Nc5 {[%clk 0:00:19.1]} 39... a5 {[%clk 0:01:19.3]} 40. Rd8
{[%clk 0:00:05.8]} 40... a4 {[%clk 0:01:18.8]} 41. Nxa4 {[%clk 0:00:05]} 41...
Rxb3 {[%clk 0:01:18.5]} 42. Rh8+ {[%clk 0:00:05.6]} 42... Kg7 {[%clk 0:01:16.9]}
43. Rxh3 {[%clk 0:00:06.5]} 43... Ra3 {[%clk 0:01:15.8]} 44. Nc5 {[%clk
0:00:06.3]} 44... Ra2 {[%clk 0:01:14]} 45. Ne4 {[%clk 0:00:06.1]} 45... f6
{[%clk 0:01:11.7]} 46. Kg2 {[%clk 0:00:03.1]} 46... Nxe3+ {[%clk 0:01:11.4]} 47.
Kf3 {[%clk 0:00:03.5]} 47... Nf5 {[%clk 0:01:05.1]} 48. Rh5 {[%clk 0:00:02]}
48... Nxd4+ {[%clk 0:01:03.3]} 49. Kg2 {[%clk 0:00:02.6]} 49... Nc2 {[%clk
0:00:56.5]} 50. Nxg5 {[%clk 0:00:03]} 50... Kg6 {[%clk 0:00:56.5]} 51. Rh8
{[%clk 0:00:02.8]} 51... Kxg5 {[%clk 0:00:56.6]} 52. Rg8+ {[%clk 0:00:03.3]}
52... Kf5 {[%clk 0:00:57.1]} 53. h4 {[%clk 0:00:04]} 53... Ne3+ {[%clk
0:00:57.3]} 54. Kf3 {[%clk 0:00:04.7]} 54... Nc4 {[%clk 0:00:58]} 55. h5 {[%clk
0:00:05.3]} 55... Ne5+ {[%clk 0:00:58.3]} 56. Kg2 {[%clk 0:00:06]} 56... Ng4
{[%clk 0:00:58.2]} 57. Kh3 {[%clk 0:00:05]} 57... Nxf2+ {[%clk 0:00:58.2]} 58.
Kh4 {[%clk 0:00:05.6]} 58... Ng4 {[%clk 0:00:58.3]} 59. Rxg4 {[%clk 0:00:02.3]}
59... Rh2# {[%clk 0:00:58]} 0-1

[Event "Early-Titled-Tuesday-Blitz-May-28-2024"]
[Site "Chess.com"]
[Date "2024.05.28"]
[Round "4"]
[White "Jeppesen08"]
[Black "chessamical"]
[Result "1-0"]
[WhiteElo "2481"]
[BlackElo "2280"]
[TimeControl "180+1"]
[EndTime "8:39:43 PDT"]
[Termination "Jeppesen08 won by checkmate"]

1. e4 {[%clk 0:03:00.9]} 1... e6 {[%clk 0:02:57]} 2. d4 {[%clk 0:02:56.6]} 2...
d5 {[%clk 0:02:57.4]} 3. exd5 {[%clk 0:02:57.5]} 3... exd5 {[%clk 0:02:57.2]} 4.
Nf3 {[%clk 0:02:58.1]} 4... Nf6 {[%clk 0:02:56.7]} 5. c4 {[%clk 0:02:57.7]} 5...
Bb4+ {[%clk 0:02:54.5]} 6. Bd2 {[%clk 0:02:55.5]} 6... Qe7+ {[%clk 0:02:53.6]}
7. Be2 {[%clk 0:02:53.7]} 7... dxc4 {[%clk 0:02:42.8]} 8. O-O {[%clk 0:02:50.2]}
8... Bxd2 {[%clk 0:02:42.1]} 9. Nbxd2 {[%clk 0:02:51.1]} 9... O-O {[%clk
0:02:38.2]} 10. Bxc4 {[%clk 0:02:45.8]} 10... Bg4 {[%clk 0:02:35.9]} 11. Qb3
{[%clk 0:02:41.3]} 11... c6 {[%clk 0:02:22.9]} 12. Ne5 {[%clk 0:02:38.5]} 12...
Bh5 {[%clk 0:02:17.8]} 13. Rfe1 {[%clk 0:02:37.1]} 13... Qc7 {[%clk 0:02:16.1]}
14. Ne4 {[%clk 0:02:32.4]} 14... Nxe4 {[%clk 0:02:06.4]} 15. Rxe4 {[%clk
0:02:33.3]} 15... b5 {[%clk 0:02:01.3]} 16. Qh3 {[%clk 0:02:04]} 16... bxc4
{[%clk 0:01:53.6]} 17. Qxh5 {[%clk 0:02:03.5]} 17... Nd7 {[%clk 0:01:54.3]} 18.
Nxc4 {[%clk 0:01:28.6]} 18... Nf6 {[%clk 0:01:53.6]} 19. Qe5 {[%clk 0:01:28.2]}
19... Qd7 {[%clk 0:01:40.1]} 20. Re3 {[%clk 0:01:25.4]} 20... Rad8 {[%clk
0:01:34.6]} 21. Rd3 {[%clk 0:01:12.5]} 21... Rfe8 {[%clk 0:01:27.9]} 22. Qg3
{[%clk 0:01:10.9]} 22... c5 {[%clk 0:01:19.3]} 23. Ne5 {[%clk 0:00:43]} 23...
Ne4 {[%clk 0:00:51.3]} 24. Nxd7 {[%clk 0:00:28.9]} 24... Nxg3 {[%clk 0:00:47.4]}
25. Rxg3 {[%clk 0:00:14.8]} 25... Rxd7 {[%clk 0:00:45.7]} 26. dxc5 {[%clk
0:00:15.4]} 26... Rd2 {[%clk 0:00:45.9]} 27. Rc3 {[%clk 0:00:11.2]} 27... Rxb2
{[%clk 0:00:45.2]} 28. c6 {[%clk 0:00:08.4]} 28... Rc8 {[%clk 0:00:38.1]} 29. c7
{[%clk 0:00:07.9]} 29... Kf8 {[%clk 0:00:35.9]} 30. g3 {[%clk 0:00:07.2]} 30...
Ke7 {[%clk 0:00:35.2]} 31. Re1+ {[%clk 0:00:07.5]} 31... Kd7 {[%clk 0:00:34.9]}
32. Rd1+ {[%clk 0:00:08.1]} 32... Ke7 {[%clk 0:00:35.2]} 33. Re3+ {[%clk
0:00:08.1]} 33... Kf6 {[%clk 0:00:34]} 34. Rd6+ {[%clk 0:00:08.7]} 34... Kf5
{[%clk 0:00:32.8]} 35. Rd5+ {[%clk 0:00:07.4]} 35... Kf6 {[%clk 0:00:31]} 36.
Rc5 {[%clk 0:00:04.8]} 36... Rb7 {[%clk 0:00:23.9]} 37. Rc6+ {[%clk 0:00:04.2]}
37... Kf5 {[%clk 0:00:23.2]} 38. Rec3 {[%clk 0:00:04.9]} 38... Ke5 {[%clk
0:00:20.6]} 39. Kf1 {[%clk 0:00:03]} 39... Kd5 {[%clk 0:00:18.6]} 40. Ke2 {[%clk
0:00:02.2]} 40... Rb2+ {[%clk 0:00:18.7]} 41. Kd3 {[%clk 0:00:01.3]} 41... Rxa2
{[%clk 0:00:17.6]} 42. R3c5# {[%clk 0:00:01.3]} 1-0

[Event "Early-Titled-Tuesday-Blitz-May-28-2024"]
[Site "Chess.com"]
[Date "2024.05.28"]
[Round "4"]
[White "Root_21"]
[Black "NajdorfPlayerc5"]
[Result "1-0"]
[WhiteElo "2682"]
[BlackElo "2454"]
[TimeControl "180+1"]
[EndTime "8:39:45 PDT"]
[Termination "Root_21 won on time"]

1. Nf3 {[%clk 0:03:00.9]} 1... Nf6 {[%clk 0:02:58.7]} 2. g3 {[%clk 0:03:00.3]}
2... b6 {[%clk 0:02:58]} 3. Bg2 {[%clk 0:02:59.7]} 3... Bb7 {[%clk 0:02:56.2]}
4. O-O {[%clk 0:03:00.1]} 4... e6 {[%clk 0:02:55.3]} 5. d3 {[%clk 0:02:58.4]}
5... d5 {[%clk 0:02:53.5]} 6. Nbd2 {[%clk 0:02:58.4]} 6... Be7 {[%clk
0:02:53.3]} 7. Re1 {[%clk 0:02:58.8]} 7... O-O {[%clk 0:02:51]} 8. c3 {[%clk
0:02:55.5]} 8... Nbd7 {[%clk 0:02:28.3]} 9. e4 {[%clk 0:02:55.2]} 9... dxe4
{[%clk 0:02:23.4]} 10. dxe4 {[%clk 0:02:56.1]} 10... Nc5 {[%clk 0:02:21.9]} 11.
e5 {[%clk 0:02:52.5]} 11... Nfe4 {[%clk 0:01:45.2]} 12. Nd4 {[%clk 0:02:47.6]}
12... Nxd2 {[%clk 0:01:43.2]} 13. Bxb7 {[%clk 0:02:41.9]} 13... Nxb7 {[%clk
0:01:32.6]} 14. Bxd2 {[%clk 0:02:42]} 14... Qd7 {[%clk 0:01:31]} 15. Qg4 {[%clk
0:02:38.8]} 15... Kh8 {[%clk 0:01:22.5]} 16. Rad1 {[%clk 0:02:38.2]} 16... c5
{[%clk 0:01:22.3]} 17. Nf3 {[%clk 0:02:23.2]} 17... Rad8 {[%clk 0:01:13]} 18. h4
{[%clk 0:02:19.3]} 18... Qc6 {[%clk 0:00:52]} 19. Ng5 {[%clk 0:02:17.5]} 19...
Bxg5 {[%clk 0:00:35.5]} 20. Bxg5 {[%clk 0:02:18.4]} 20... Rxd1 {[%clk
0:00:34.9]} 21. Rxd1 {[%clk 0:02:19.3]} 21... h6 {[%clk 0:00:35.3]} 22. Be3
{[%clk 0:01:53.8]} 22... Rd8 {[%clk 0:00:33.8]} 23. Re1 {[%clk 0:01:39.8]} 23...
Qd5 {[%clk 0:00:31.4]} 24. Qh5 {[%clk 0:01:32.9]} 24... Qxa2 {[%clk 0:00:20.9]}
25. Qxf7 {[%clk 0:01:29.1]} 25... Qd5 {[%clk 0:00:17.7]} 26. c4 {[%clk
0:01:26.5]} 26... Qd7 {[%clk 0:00:17]} 27. Qh5 {[%clk 0:01:24.5]} 27... Kh7
{[%clk 0:00:10.6]} 28. Kh2 {[%clk 0:01:20.6]} 28... Na5 {[%clk 0:00:10.2]} 29.
Qg4 {[%clk 0:01:19.3]} 29... Nc6 {[%clk 0:00:09.3]} 30. h5 {[%clk 0:01:17.2]}
30... Kh8 {[%clk 0:00:05.7]} 31. Qe4 {[%clk 0:01:13.1]} 31... Qe8 {[%clk
0:00:04.5]} 32. Kg2 {[%clk 0:01:10.4]} 32... Nd4 {[%clk 0:00:03.7]} 33. g4
{[%clk 0:00:58.9]} 33... Qc6 {[%clk 0:00:03.2]} 34. Bxd4 {[%clk 0:00:58.9]}
34... Qxe4+ {[%clk 0:00:02.2]} 35. Rxe4 {[%clk 0:00:58.9]} 35... cxd4 {[%clk
0:00:02]} 36. Kf1 {[%clk 0:00:59.4]} 36... Kg8 {[%clk 0:00:01.8]} 37. Ke2 {[%clk
0:00:59.6]} 37... Kf7 {[%clk 0:00:01.4]} 38. Kd3 {[%clk 0:00:59.9]} 38... Ke7
{[%clk 0:00:01]} 39. Rxd4 {[%clk 0:00:58.8]} 39... Rf8 {[%clk 0:00:01.2]} 40. f4
{[%clk 0:00:58.4]} 40... Rc8 {[%clk 0:00:01.5]} 41. Rd6 {[%clk 0:00:54.6]} 41...
Rc7 {[%clk 0:00:02.1]} 42. f5 {[%clk 0:00:54.4]} 42... exf5 {[%clk 0:00:01.6]}
43. gxf5 {[%clk 0:00:55.3]} 43... Rc5 {[%clk 0:00:02]} 44. Kd4 {[%clk
0:00:55.3]} 44... Ra5 {[%clk 0:00:02.1]} 45. Rc6 {[%clk 0:00:52]} 45... Kd7
{[%clk 0:00:01.5]} 46. Rg6 {[%clk 0:00:52.1]} 46... Ra2 {[%clk 0:00:01.7]} 47.
Rxg7+ {[%clk 0:00:52.4]} 47... Ke8 {[%clk 0:00:01.4]} 48. Kd5 {[%clk 0:00:49.6]}
48... Rxb2 {[%clk 0:00:01.3]} 49. Ke6 {[%clk 0:00:49.7]} 49... Kf8 {[%clk
0:00:01.5]} 50. f6 {[%clk 0:00:49.2]} 50... Rc2 {[%clk 0:00:01]} 51. Rc7 {[%clk
0:00:49]} 51... Kg8 {[%clk 0:00:01]} 52. Ke7 {[%clk 0:00:46.4]} 1-0

[Event "Early-Titled-Tuesday-Blitz-May-28-2024"]
[Site "Chess.com"]
[Date "2024.05.28"]
[Round "4"]
[White "AljoschaFeuerstack"]
[Black "TomLiu777"]
[Result "1-0"]
[WhiteElo "2647"]
[BlackElo "2369"]
[TimeControl "180+1"]
[EndTime "8:39:46 PDT"]
[Termination "AljoschaFeuerstack won on time"]

1. e4 {[%clk 0:02:53.2]} 1... e6 {[%clk 0:02:59.6]} 2. d3 {[%clk 0:02:51.7]}
2... d5 {[%clk 0:02:55.7]} 3. Nd2 {[%clk 0:02:52]} 3... Nc6 {[%clk 0:02:44.5]}
4. Ngf3 {[%clk 0:02:50.9]} 4... e5 {[%clk 0:02:37]} 5. g3 {[%clk 0:02:37]} 5...
Nf6 {[%clk 0:02:26.6]} 6. Bg2 {[%clk 0:02:36.8]} 6... dxe4 {[%clk 0:02:26.4]} 7.
dxe4 {[%clk 0:02:36.2]} 7... Bc5 {[%clk 0:02:27]} 8. O-O {[%clk 0:02:35.8]} 8...
O-O {[%clk 0:02:23.5]} 9. c3 {[%clk 0:02:29.9]} 9... Qe7 {[%clk 0:02:18.8]} 10.
Qc2 {[%clk 0:02:25.1]} 10... a5 {[%clk 0:02:12.7]} 11. a4 {[%clk 0:02:20.8]}
11... Be6 {[%clk 0:02:02.8]} 12. Nb3 {[%clk 0:02:03.9]} 12... Bb6 {[%clk
0:01:56]} 13. Re1 {[%clk 0:01:56.1]} 13... Rfd8 {[%clk 0:01:52.8]} 14. Be3
{[%clk 0:01:41.7]} 14... Bxe3 {[%clk 0:01:49.5]} 15. Rxe3 {[%clk 0:01:41.7]}
15... b6 {[%clk 0:01:42.3]} 16. Bf1 {[%clk 0:01:32.5]} 16... Ng4 {[%clk
0:01:31.4]} 17. Ree1 {[%clk 0:01:32.5]} 17... Qf6 {[%clk 0:01:29.9]} 18. Bg2
{[%clk 0:01:21.1]} 18... Bc4 {[%clk 0:00:55.7]} 19. Rad1 {[%clk 0:01:13.1]}
19... h6 {[%clk 0:00:50]} 20. h3 {[%clk 0:01:09.1]} 20... Qe6 {[%clk 0:00:50.1]}
21. Nbd2 {[%clk 0:00:55.3]} 21... Bd3 {[%clk 0:00:47.7]} 22. Qb3 {[%clk
0:00:49.7]} 22... Qxb3 {[%clk 0:00:47.2]} 23. Nxb3 {[%clk 0:00:50.6]} 23... Bc2
{[%clk 0:00:47.7]} 24. Rxd8+ {[%clk 0:00:48.5]} 24... Rxd8 {[%clk 0:00:48.6]}
25. Na1 {[%clk 0:00:48.5]} 25... Bxa4 {[%clk 0:00:21.5]} 26. hxg4 {[%clk
0:00:47.8]} 26... f6 {[%clk 0:00:18.8]} 27. Bf1 {[%clk 0:00:45.5]} 27... Ne7
{[%clk 0:00:16.4]} 28. Bc4+ {[%clk 0:00:40.8]} 28... Kf8 {[%clk 0:00:15.3]} 29.
Be2 {[%clk 0:00:36.6]} 29... Nc8 {[%clk 0:00:14.2]} 30. b3 {[%clk 0:00:30.9]}
30... Bc6 {[%clk 0:00:13.8]} 31. Bf1 {[%clk 0:00:28]} 31... Nd6 {[%clk
0:00:12.6]} 32. Nd2 {[%clk 0:00:26.1]} 32... Nb7 {[%clk 0:00:11.5]} 33. Nc4
{[%clk 0:00:25.5]} 33... Nc5 {[%clk 0:00:09.5]} 34. f3 {[%clk 0:00:24.2]} 34...
Ke7 {[%clk 0:00:04.3]} 35. Kf2 {[%clk 0:00:24.5]} 35... Bb7 {[%clk 0:00:04.4]}
36. Ne3 {[%clk 0:00:22.6]} 36... Ne6 {[%clk 0:00:03.8]} 37. Bc4 {[%clk
0:00:22.2]} 37... Nc5 {[%clk 0:00:03.3]} 38. Rd1 {[%clk 0:00:20.6]} 38... Rxd1
{[%clk 0:00:02.9]} 39. Nxd1 {[%clk 0:00:21.5]} 39... c6 {[%clk 0:00:03.4]} 40.
Ne3 {[%clk 0:00:21.3]} 1-0

[Event "Early-Titled-Tuesday-Blitz-May-28-2024"]
[Site "Chess.com"]
[Date "2024.05.28"]
[Round "4"]
[White "xakevicius91"]
[Black "sammartin99"]
[Result "1-0"]
[WhiteElo "2486"]
[BlackElo "2294"]
[TimeControl "180+1"]
[EndTime "8:39:46 PDT"]
[Termination "xakevicius91 won on time"]

1. e4 {[%clk 0:02:55]} 1... c5 {[%clk 0:02:57.9]} 2. Nf3 {[%clk 0:02:55.1]} 2...
Nc6 {[%clk 0:02:57]} 3. d4 {[%clk 0:02:55.5]} 3... cxd4 {[%clk 0:02:56.4]} 4.
Nxd4 {[%clk 0:02:56.4]} 4... Nf6 {[%clk 0:02:56]} 5. Nc3 {[%clk 0:02:56.2]} 5...
e5 {[%clk 0:02:56]} 6. Ndb5 {[%clk 0:02:56.7]} 6... d6 {[%clk 0:02:56.4]} 7. Bg5
{[%clk 0:02:57.1]} 7... a6 {[%clk 0:02:56.6]} 8. Na3 {[%clk 0:02:57.2]} 8... b5
{[%clk 0:02:56.8]} 9. Nd5 {[%clk 0:02:57.5]} 9... Be7 {[%clk 0:02:56.8]} 10.
Bxf6 {[%clk 0:02:57.9]} 10... Bxf6 {[%clk 0:02:57.1]} 11. c4 {[%clk 0:02:58.2]}
11... b4 {[%clk 0:02:51]} 12. Nc2 {[%clk 0:02:56.4]} 12... a5 {[%clk 0:02:47.2]}
13. g3 {[%clk 0:02:49]} 13... O-O {[%clk 0:02:39.8]} 14. h4 {[%clk 0:02:48]}
14... Nd4 {[%clk 0:02:18.3]} 15. Bh3 {[%clk 0:02:37.2]} 15... Bb7 {[%clk
0:02:03.9]} 16. Nxd4 {[%clk 0:02:28.2]} 16... exd4 {[%clk 0:02:04.8]} 17. O-O
{[%clk 0:02:27.9]} 17... Re8 {[%clk 0:01:56.9]} 18. Qd3 {[%clk 0:02:27.3]} 18...
g6 {[%clk 0:01:11.1]} 19. Rad1 {[%clk 0:02:24.7]} 19... Bxd5 {[%clk 0:01:08.6]}
20. cxd5 {[%clk 0:02:24.7]} 20... Qe7 {[%clk 0:00:51.1]} 21. Rfe1 {[%clk
0:02:23.1]} 21... Ra7 {[%clk 0:00:40.2]} 22. Rc1 {[%clk 0:02:22.1]} 22... Rc7
{[%clk 0:00:37.7]} 23. Rc6 {[%clk 0:02:08.2]} 23... Be5 {[%clk 0:00:23.1]} 24.
Rec1 {[%clk 0:02:04.1]} 24... Rb7 {[%clk 0:00:20.2]} 25. Bg4 {[%clk 0:01:40.8]}
25... Kg7 {[%clk 0:00:19.3]} 26. Kg2 {[%clk 0:01:40.4]} 26... h5 {[%clk
0:00:18.7]} 27. Bh3 {[%clk 0:01:40.5]} 27... Rd8 {[%clk 0:00:17.3]} 28. b3
{[%clk 0:01:33.3]} 28... Rdb8 {[%clk 0:00:14.1]} 29. Re1 {[%clk 0:01:27.1]}
29... Ra7 {[%clk 0:00:11.2]} 30. f4 {[%clk 0:01:27.3]} 30... Bf6 {[%clk
0:00:08.9]} 31. e5 {[%clk 0:01:18.1]} 31... dxe5 {[%clk 0:00:09]} 32. fxe5
{[%clk 0:01:18.2]} 32... Bxe5 {[%clk 0:00:09.3]} 33. d6 {[%clk 0:01:18.8]} 33...
Qb7 {[%clk 0:00:05]} 34. Qe4 {[%clk 0:01:13.4]} 34... f6 {[%clk 0:00:03.9]} 35.
Rc7+ {[%clk 0:01:11.8]} 35... Qxc7 {[%clk 0:00:04.2]} 36. dxc7 {[%clk
0:01:12.7]} 36... Rxc7 {[%clk 0:00:04.3]} 37. Rd1 {[%clk 0:01:09.5]} 37... Rc3
{[%clk 0:00:04.2]} 38. Rxd4 {[%clk 0:01:08.3]} 38... Bxd4 {[%clk 0:00:03.5]} 39.
Qxd4 {[%clk 0:01:08.5]} 39... Rc7 {[%clk 0:00:03.2]} 40. Qd6 {[%clk 0:01:02.2]}
40... Rbb7 {[%clk 0:00:02.2]} 41. Be6 {[%clk 0:01:01.8]} 41... Ra7 {[%clk
0:00:02]} 42. Kh3 {[%clk 0:01:00.1]} 42... Re7 {[%clk 0:00:02]} 43. Bc4 {[%clk
0:00:59]} 43... Rec7 {[%clk 0:00:02.2]} 44. Qb6 {[%clk 0:00:58.6]} 44... Re7
{[%clk 0:00:02.8]} 45. Qc5 {[%clk 0:00:55.9]} 45... Rec7 {[%clk 0:00:03.4]} 46.
Qd6 {[%clk 0:00:56.3]} 46... Re7 {[%clk 0:00:03.7]} 47. Qd4 {[%clk 0:00:54.9]}
47... Rec7 {[%clk 0:00:03.8]} 48. Bd3 {[%clk 0:00:54.8]} 48... Re7 {[%clk
0:00:03.4]} 49. Qf4 {[%clk 0:00:53.9]} 49... Rec7 {[%clk 0:00:03]} 50. Qe4
{[%clk 0:00:53.3]} 50... f5 {[%clk 0:00:03.1]} 51. Qe5+ {[%clk 0:00:53.3]} 51...
Kh6 {[%clk 0:00:02.5]} 52. Bc4 {[%clk 0:00:53.4]} 52... Re7 {[%clk 0:00:02.1]}
53. Qf6 {[%clk 0:00:53.1]} 53... Rac7 {[%clk 0:00:00.8]} 54. Bd3 {[%clk
0:00:52.2]} 54... Ra7 {[%clk 0:00:00.9]} 55. Bxf5 {[%clk 0:00:52]} 55... Rg7
{[%clk 0:00:01.3]} 56. Qg5+ {[%clk 0:00:50.1]} 56... Kh7 {[%clk 0:00:01.6]} 57.
Qxh5+ {[%clk 0:00:51]} 1-0

[Event "Early-Titled-Tuesday-Blitz-May-28-2024"]
[Site "Chess.com"]
[Date "2024.05.28"]
[Round "4"]
[White "theoneandonlydaaevik"]
[Black "tylityli"]
[Result "1-0"]
[WhiteElo "2613"]
[BlackElo "2375"]
[TimeControl "180+1"]
[EndTime "8:39:48 PDT"]
[Termination "theoneandonlydaaevik won on time"]

1. c4 {[%clk 0:02:56.6]} 1... c5 {[%clk 0:02:59.5]} 2. Nf3 {[%clk 0:02:52]} 2...
Nf6 {[%clk 0:02:59.9]} 3. g3 {[%clk 0:02:51.7]} 3... d5 {[%clk 0:03:00.1]} 4.
cxd5 {[%clk 0:02:47.4]} 4... Nxd5 {[%clk 0:03:01]} 5. Nc3 {[%clk 0:02:42.8]}
5... Nc6 {[%clk 0:03:00.5]} 6. Bg2 {[%clk 0:02:41.4]} 6... Nc7 {[%clk
0:03:00.6]} 7. O-O {[%clk 0:02:40.5]} 7... g6 {[%clk 0:03:01.1]} 8. d3 {[%clk
0:02:38.7]} 8... Bg7 {[%clk 0:03:01.2]} 9. Be3 {[%clk 0:02:38.7]} 9... Ne6
{[%clk 0:03:00.4]} 10. Rc1 {[%clk 0:02:38.9]} 10... Rb8 {[%clk 0:02:59.2]} 11.
Nd2 {[%clk 0:01:43.7]} 11... Ncd4 {[%clk 0:02:26.4]} 12. Qa4+ {[%clk 0:01:29.3]}
12... Bd7 {[%clk 0:02:09.8]} 13. Qxa7 {[%clk 0:01:25.7]} 13... b5 {[%clk
0:01:53.4]} 14. Rfe1 {[%clk 0:00:55.1]} 14... O-O {[%clk 0:01:42.1]} 15. Bxd4
{[%clk 0:00:43]} 15... Bxd4 {[%clk 0:01:32.5]} 16. Nb3 {[%clk 0:00:42.2]} 16...
b4 {[%clk 0:00:34.2]} 17. Nxd4 {[%clk 0:00:38.1]} 17... bxc3 {[%clk 0:00:30.7]}
18. Nxe6 {[%clk 0:00:37]} 18... Bxe6 {[%clk 0:00:27]} 19. bxc3 {[%clk
0:00:33.5]} 19... Rb2 {[%clk 0:00:26.1]} 20. c4 {[%clk 0:00:31.6]} 20... Qd6
{[%clk 0:00:23.6]} 21. Rb1 {[%clk 0:00:22.1]} 21... Rfb8 {[%clk 0:00:23.5]} 22.
Rxb2 {[%clk 0:00:19.9]} 22... Rxb2 {[%clk 0:00:24.4]} 23. a4 {[%clk 0:00:19.5]}
23... Ra2 {[%clk 0:00:19.2]} 24. a5 {[%clk 0:00:17.2]} 24... Kg7 {[%clk
0:00:16.7]} 25. Qb6 {[%clk 0:00:15]} 25... Bc8 {[%clk 0:00:06.5]} 26. Rb1 {[%clk
0:00:09.9]} 26... Rxe2 {[%clk 0:00:03.2]} 27. Qxd6 {[%clk 0:00:04.4]} 27... exd6
{[%clk 0:00:04.1]} 28. Bf3 {[%clk 0:00:03.8]} 28... Ra2 {[%clk 0:00:03.4]} 29.
Rb8 {[%clk 0:00:02.3]} 29... Bf5 {[%clk 0:00:00.9]} 30. Be4 {[%clk 0:00:01.7]}
1-0